Cogmind - Beta 13 @@@ ROGUE MODE // 2024.06.07 @ 02:57:55 Player: Shippujinlai Result: Destroyed by S-27 Virus with Autogun Performance ------------- Evolutions (5) 2500 Regions Visited (10) 2000 Robots Destroyed (70) 350 Value Destroyed (1770) 1770 Prototype IDs (12) 240 Alien Tech Used (0) 0 Bonus (1000) 1000 TOTAL SCORE: 7860 Bonus ------- Met Warlord at Base 500 MAIN.C Attacked Warlord 500 Cogmind --------- Core Integrity 0/1000 Matter 240/300 Energy 100/100 System Corruption 0% Temperature Cool (0) Movement Hovering (68) Location -4/Proximity Caves Parts ------- > --- POWER (2) -------- Backup Power III Backup Power III > --- PROPULSION (4) --- Backup Propulsion III Backup Propulsion III Backup Propulsion III Backup Propulsion III > --- UTILITY (9) ------ Improved Terrain Scan Processor Improved Terrain Scan Processor Improved Terrain Scan Processor Transport Network Coupler Kinecellerator Layered Light Armor Plating > --- WEAPON (2) ------- Vortex Lance Vortex Lance > --- INVENTORY (5) ---- Improved Actuator Array Backup Laser III Backup Laser III Heavy Gauss Cannon Peak State ------------ > --- POWER ------------ Improved Deuterium Engine > --- PROPULSION ------- Medium Treads Medium Treads Medium Treads Medium Treads > --- UTILITY ---------- Advanced Heat Sink Advanced Terrain Scanner Improved Terrain Scan Processor Improved Terrain Scan Processor Improved Terrain Scan Processor Transport Network Coupler Hardened Medium Armor Plating Hacking Suite > --- WEAPON ----------- Heavy Laser Coil Gun > --- INVENTORY -------- Improved Flight Unit Kinecellerator Improved Actuator Array Improved Grenade Launcher [Rating: 56] Favorites ----------- Power Ion Engine Engine Ion Engine Power Core Enhanced Nuclear Core Propulsion Improved Flight Unit Treads Light Treads Wheel Compact Wheel Hover Unit Backup Propulsion III Flight Unit Improved Flight Unit Utility Improved Terrain Scan Processor Device Structural Scanner Storage Small Storage Unit Processor Improved Terrain Scan Processor Hackware Hacking Suite Protection Light Armor Plating Weapon High-powered Shotgun Energy Gun Heavy Laser Ballistic Gun High-powered Shotgun Ballistic Cannon Light Cannon Launcher Improved Grenade Launcher Piercing Weapon Vortex Lance Build | -11 -10 -9 -8 -7 -6 -5 -5 -5 -5 -4 ------- Run | Yrd Mat Mat Mat Fac Fac Fac Upp Upp War Pro Slots Evolved 10 | . . 2 2 2 2 2 . . . . Power 1 | . . . . . . 1 . . . . Propulsion 2 | . . 1 1 . . . . . . . Utility 7 | . . 1 1 2 2 1 . . . . Weapon . | . . . . . . . . . . . Parts Attached 76 | 6 7 12 10 9 20 1 4 1 6 . Power 10 | 1 . 2 1 3 2 1 . . . . Engine 7 | 1 . 2 1 1 1 1 . . . . Core 3 | . . . . 2 1 . . . . . Reactor . | . . . . . . . . . . . Propulsion 24 | 2 2 7 3 1 6 . 1 . 2 . Treads 8 | . . 4 . . 4 . . . . . Leg . | . . . . . . . . . . . Wheel 3 | 2 . . . . . . 1 . . . Hover 6 | . 2 2 . . . . . . 2 . Flight 7 | . . 1 3 1 2 . . . . . Utility 24 | 1 3 1 4 4 7 . 2 . 2 . Device 13 | . 3 . 1 3 3 . 2 . 1 . Storage 1 | 1 . . . . . . . . . . Processor 5 | . . . 1 1 3 . . . . . Hackware 1 | . . . 1 . . . . . . . Protection 4 | . . 1 1 . 1 . . . 1 . Artifact . | . . . . . . . . . . . Weapon 18 | 2 2 2 2 1 5 . 1 1 2 . Energy Gun 1 | . . . . . 1 . . . . . Energy Cannon . | . . . . . . . . . . . Ballistic Gun 8 | 2 . 2 1 1 1 . 1 . . . Ballistic Cannon 3 | . 2 . . . . . . 1 . . Launcher 4 | . . . 1 . 3 . . . . . Special Weapon . | . . . . . . . . . . . Impact Weapon . | . . . . . . . . . . . Slashing Weapon . | . . . . . . . . . . . Piercing Weapon 2 | . . . . . . . . . 2 . Special Melee Weapon . | . . . . . . . . . . . Unidentified Prototypes 6 | . . 2 1 2 . . . . 1 . Parts Lost 35 | . . 5 8 . 18 1 . 3 . . Power 3 | . . 1 . . 2 . . . . . Propulsion 14 | . . 4 3 . 5 1 . 1 . . Utility 11 | . . . 2 . 7 . . 2 . . Weapon 7 | . . . 3 . 4 . . . . . Highest Loss Streak 11 | . . 5 6 . 11 1 . 2 . . To Critical Strikes . | . . . . . . . . . . . Average Slot Usage (%) 62 | . 94 86 75 79 75 28 32 32 53 . Engine 4 | . 14 9 8 2 2 . . . 6 . Treads 5 | . . 24 10 . 10 . . . . . Wheel 3 | . 25 . . . . . . . . . Hover 1 | . 2 5 . . . . . . 11 . Flight 5 | . . . 15 23 8 4 . . . . Device 10 | . 9 11 13 28 13 . 7 6 1 . Storage 3 | . 14 11 3 . . . . . . . Processor 13 | . . . . 7 20 23 23 23 23 . Hackware 1 | . . . 3 7 5 . . . . . Protection 1 | . . 9 6 . . . . . 1 . Ballistic Gun 4 | . 6 8 12 4 5 . . 1 . . Ballistic Cannon 3 | . 20 6 . . . . . . . . Naked Turns . | . . . . . . . . . . . Heaviest Build 30 | 13 17 23 30 15 29 5 5 5 20 . Greatest Support 112 | 32 32 60 60 15 112 5 10 10 32 . Greatest Overweight (x) 3 | . 2 3 . . 3 . . 1 1 . Average Overweight (x) . | . . . . . . . . . . . Largest Inventory Capacity 8 | 8 8 8 8 5 5 5 5 5 5 5 Average Capacity 5 | 7 8 8 6 5 5 5 5 5 5 5 Most Carried 8 | 2 8 8 8 5 4 3 5 5 5 4 Average Carried 4 | . 4 6 6 4 3 2 4 4 4 4 Final Capacity 8 | 8 8 8 5 5 5 5 5 5 5 5 Final Carried 8 | 2 8 8 5 3 2 3 5 5 4 4 Class Distribution -------------------- 91% | Mutant 5% | Scout Dominant Class ---------------- Mutant | -10/Materials Mutant | -9/Materials Mutant | -8/Materials Mutant | -7/Factory Mutant | -6/Factory Mutant | -5/Factory Mutant | -5/Upper Caves Mutant | -5/Upper Caves Mutant | -5/Warlord Mutant | -4/Proximity Caves Resources | -11 -10 -9 -8 -7 -6 -5 -5 -5 -5 -4 ----------- Run | Yrd Mat Mat Mat Fac Fac Fac Upp Upp War Pro Matter Collected 2218 | 276 376 331 323 56 516 . 170 170 . . Remotely 417 | . . . . 26 391 . . . . . Salvage Created 2224 | 66 541 537 424 26 590 . . . . 40 Parts 119 | 2 32 39 21 1 22 . . . . 2 Haulers Intercepted 10 | . 2 4 3 . 1 . . . . . Recyclers Shooed 5 | 1 3 . . . 1 . . . . . Parts Field Recycled . | . . . . . . . . . . . Retrieved Matter . | . . . . . . . . . . . Parts Self-Destructed 4 | . . . . . . . . 4 . . Prevented . | . . . . . . . . . . . Kills | -11 -10 -9 -8 -7 -6 -5 -5 -5 -5 -4 ------- Run | Yrd Mat Mat Mat Fac Fac Fac Upp Upp War Pro Combat Hostiles Destroyed 40 | . 8 8 10 . 12 . . . . 2 Melee 2 | . . . . . . . . . . 2 Guns 21 | . 2 4 8 . 7 . . . . . Cannons 10 | . 6 4 . . . . . . . . AOE 7 | . . . 2 . 5 . . . . . Classes Destroyed 14 | 1 7 3 . . 3 . . . . . Worker 4 | . 1 1 . 1 1 . . . . . Builder 5 | . 1 3 . . 1 . . . . . Tunneler 1 | . 1 . . . . . . . . . Hauler 10 | . 2 4 3 . 1 . . . . . Recycler 4 | 1 2 1 . . . . . . . . Operator 2 | . 1 . 1 . . . . . . . Watcher 4 | . 2 2 . . . . . . . . Swarmer 10 | . . 4 2 . 2 . . . . 2 Grunt 19 | . 8 1 5 . 5 . . . . . Brawler 1 | . . . . . 1 . . . . . Duelist 1 | . . 1 . . . . . . . . Sentry 6 | . . 2 3 . 1 . . . . . Hunter 2 | . . . . . 2 . . . . . Programmer 1 | . . . . . 1 . . . . . Best Kill Streak 5 | 1 4 5 5 1 5 . . . . 2 Combat Bots Only 5 | . 3 4 5 . 3 . . . . 2 Max Kills in Single Turn 2 | 1 1 2 2 1 2 . . . . 2 Gunslinging 1 | . . 1 . . . . . . . . Exploded 2 | . . . 2 . 2 . . . . . Melee 2 | . . . . . . . . . . 2 Uniques/NPCs Destroyed . | . . . . . . . . . . . Combat | -11 -10 -9 -8 -7 -6 -5 -5 -5 -5 -4 -------- Run | Yrd Mat Mat Mat Fac Fac Fac Upp Upp War Pro Hostile Shots Fired 527 | . 42 45 83 1 243 40 14 54 . 5 Missed 180 | . 12 15 18 . 91 18 5 21 . . Damage Taken 5403 | . 359 460 1083 77 2200 370 201 567 . 86 Core 1647 | . 75 107 150 42 272 304 201 460 . 36 Absorbed by Shields . | . . . . . . . . . . . Regen/Repaired (Parts) 17 | . 17 . . . . . . . . . Core Remaining (%) 79 | 100 70 73 72 94 68 . . . . . Volleys Fired 240 | 4 52 55 62 1 63 . . 3 . . Largest 2 | 2 2 2 2 1 2 . . 1 . . Hottest 99 | 40 70 50 55 25 99 . . 61 . . Shots Fired 345 | 8 103 71 79 1 80 . . 3 . . Gun 209 | 8 26 32 75 1 67 . . . . . Cannon 119 | . 77 39 . . . . . 3 . . Launcher 17 | . . . 4 . 13 . . . . . Special . | . . . . . . . . . . . Kinetic 316 | 8 103 71 75 1 55 . . 3 . . Thermal 12 | . . . . . 12 . . . . . Explosive 17 | . . . 4 . 13 . . . . . Electromagnetic . | . . . . . . . . . . . Robot Hit Streak 11 | 2 9 5 7 5 11 . . . . . Robot Miss Streak 6 | 2 6 3 5 1 4 . . . . . Penetration Max . | . . . . . . . . . . . Secondary Targets 5 | . . 2 2 . 1 . . . . . Max Gunslinging Chain 1 | . . 1 1 . 1 . . . . . Shots Hit Robots 236 | 4 62 46 66 1 55 . . . . 2 Core Hits 121 | 2 22 23 28 1 44 1 . . . . Critical Kills 1 | . . . . . 1 . . . . . Critical Parts Destroyed . | . . . . . . . . . . . Critical Strikes 2 | . 1 . . . 1 . . . . . Destroy 1 | . . . . . 1 . . . . . Blast 1 | . 1 . . . . . . . . . Melee Attacks 5 | . . . . . . . . . 3 2 Impact . | . . . . . . . . . . . Slashing . | . . . . . . . . . . . Piercing . | . . . . . . . . . . . Entropic 5 | . . . . . . . . . 3 2 Sneak Attacks 2 | . . . . . . . . . . 2 Combat Hostiles 2 | . . . . . . . . . . 2 Follow-up Attacks 1 | . . . . . . . . . . 1 Damage Inflicted 5393 | 43 1039 825 1361 54 1745 8 . . . 318 Guns 2681 | 43 206 404 1079 17 932 . . . . . Cannons 1246 | . 833 413 . . . . . . . . Explosions 1094 | . . . 282 . 812 . . . . . Melee 318 | . . . . . . . . . . 318 Ramming 54 | . . 8 . 37 1 8 . . . . Kinetic 3746 | 43 1039 817 1079 17 751 . . . . . Thermal 181 | . . . . . 181 . . . . . Explosive 1094 | . . . 282 . 812 . . . . . Electromagnetic . | . . . . . . . . . . . Impact . | . . . . . . . . . . . Slashing . | . . . . . . . . . . . Piercing . | . . . . . . . . . . . Entropic 318 | . . . . . . . . . . 318 Highest Corruption 6 | . 3 . . . 6 . . . . . Average Corruption 3 | . 2 . . . 3 . . . . . Corruption Purged . | . . . . . . . . . . . Corruption Blocked . | . . . . . . . . . . . Effects 36 | . 11 . . . 25 . . . . . Message Errors 10 | . 5 . . . 5 . . . . . Matter Fused 8 | . 1 . . . 7 . . . . . Heat Flow Errors 2 | . 1 . . . 1 . . . . . Energy Discharges 3 | . . . . . 3 . . . . . Parts Rejected 1 | . 1 . . . . . . . . . Data Loss (minor) 4 | . 1 . . . 3 . . . . . Data Loss (major) 3 | . 1 . . . 2 . . . . . Misfires 2 | . . . . . 2 . . . . . Weapon Failures 3 | . 1 . . . 2 . . . . . Overload Shots . | . . . . . . . . . . . Overflow Damage 219 | . 7 . 17 4 13 . . . . 178 Projectiles 7 | . 7 . . . . . . . . . Explosions 30 | . . . 17 . 13 . . . . . Melee 182 | . . . . 4 . . . . . 178 Knockbacks 12 | . 6 4 . 1 . 1 . . . . Impact 2 | . . . . 1 . 1 . . . . Kinetic 10 | . 6 4 . . . . . . . . Secondary . | . . . . . . . . . . . Self-Inflicted Damage 306 | . . . 124 16 163 3 . . . . Shots 11 | . . . 4 . 7 . . . . . Rammed 9 | . . . . 5 2 2 . . . . Targets Rammed 11 | . . 2 . 5 2 2 . . . . Kicked . | . . . . . . . . . . . Crushed 2 | . . 2 . . . . . . . . Highest Temperature 242 | . 242 6 165 . 232 . . . . . Average Temperature 43 | . 40 3 58 . 33 . . . . . Received Heat Transfer 1587 | . 216 69 576 9 507 66 54 90 . . Siege Activations . | . . . . . . . . . . . Robots Corrupted . | . . . . . . . . . . . Combat Hostiles . | . . . . . . . . . . . Parts Fried . | . . . . . . . . . . . Impact Corruptions 1 | . . . . 1 . . . . . . Robots Melted . | . . . . . . . . . . . Combat Hostiles . | . . . . . . . . . . . Parts Melted 2 | . . . . . 2 . . . . . Heat Transferred 333 | . . . . . 333 . . . . . Parts Sabotaged . | . . . . . . . . . . . Parts Stolen . | . . . . . . . . . . . Parts Stripped . | . . . . . . . . . . . Power Chain Reactions . | . . . . . . . . . . . Alert | -11 -10 -9 -8 -7 -6 -5 -5 -5 -5 -4 ------- Run | Yrd Mat Mat Mat Fac Fac Fac Upp Upp War Pro Peak Influence 395 | 5 214 266 395 238 237 255 . . . . Initial 98 | . 3 63 68 98 21 44 . . . . Average 126 | 1 106 164 212 140 88 84 . . . . Maximum Alert Level 1 | . 1 1 1 1 1 1 . . . . Low Security (%) 82 | 100 98 80 34 71 95 92 . . . . Level 1 17 | . 1 19 65 28 4 7 . . . . Level 2 . | . . . . . . . . . . . Level 3 . | . . . . . . . . . . . Level 4 . | . . . . . . . . . . . Level 5 . | . . . . . . . . . . . High Security . | . . . . . . . . . . . Max Security . | . . . . . . . . . . . Squads Dispatched 14 | . 3 . 4 . 5 1 . 1 . . Investigation 4 | . 1 . . . 2 1 . . . . Extermination 1 | . . . . . 1 . . . . . Reinforcement 5 | . 2 . 1 . 2 . . . . . Assault 1 | . . . . . . . . 1 . . Garrison 3 | . . . 3 . . . . . . . Intercept . | . . . . . . . . . . . Searches Triggered . | . . . . . . . . . . . Construction Impeded . | . . . . . . . . . . . Haulers Reinforced 1 | . . . . . 1 . . . . . Active Scanning Responses . | . . . . . . . . . . . Cargo Convoy Interrupts . | . . . . . . . . . . . Stealth | -11 -10 -9 -8 -7 -6 -5 -5 -5 -5 -4 --------- Run | Yrd Mat Mat Mat Fac Fac Fac Upp Upp War Pro Distress Signals 3 | . . 3 . . . . . . . . Communications Jammed . | . . . . . . . . . . . Distress Signals . | . . . . . . . . . . . Times Spotted 122 | . 16 12 18 8 19 24 8 13 1 3 Peak Tracking Total 13 | . 3 4 8 4 5 10 4 13 . . Tactical Retreats 19 | . . 1 1 1 3 5 5 3 . . Traps | -11 -10 -9 -8 -7 -6 -5 -5 -5 -5 -4 ------- Run | Yrd Mat Mat Mat Fac Fac Fac Upp Upp War Pro Traps Triggered 4 | . 3 . . . 1 . . . . . Indirectly . | . . . . . . . . . . . Trap Hack Attempts . | . . . . . . . . . . . Triggered . | . . . . . . . . . . . Disarmed . | . . . . . . . . . . . Reprogrammed 6 | . . . . 6 . . . . . . Reused . | . . . . . . . . . . . Traps Extracted . | . . . . . . . . . . . Installed . | . . . . . . . . . . . Triggered 9 | . . . . . . . 1 . 8 . Machines | -11 -10 -9 -8 -7 -6 -5 -5 -5 -5 -4 ---------- Run | Yrd Mat Mat Mat Fac Fac Fac Upp Upp War Pro Machines Disabled 4 | . 1 1 . . 2 . . . . . Max in Single Turn 1 | . 1 1 . . 1 . . . . . Garrison Access 2 | . . . . 1 . 1 . . . . Machines Repaired . | . . . . . . . . . . . Machines Dismantled . | . . . . . . . . . . . Machines Sabotaged . | . . . . . . . . . . . Overloaded Fab Kills . | . . . . . . . . . . . Hacking | -11 -10 -9 -8 -7 -6 -5 -5 -5 -5 -4 --------- Run | Yrd Mat Mat Mat Fac Fac Fac Upp Upp War Pro Machines Accessed 32 | . 2 2 2 9 4 8 1 . 4 . Terminals 18 | . 1 2 2 4 3 6 . . . . Fabricators 1 | . . . . 1 . . . . . . Repair Stations 2 | . 1 . . 1 . . . . . . Recycling Units 3 | . . . . 2 1 . . . . . Scanalyzers . | . . . . . . . . . . . Garrison Access 3 | . . . . 1 . 2 . . . . Total Hacks 74 | . 3 4 6 18 10 24 1 . 8 . Successful 43 | . 3 1 3 12 6 9 1 . 8 . Failed 31 | . . 3 3 6 4 15 . . . . Catastrophic 7 | . . 1 . 1 2 3 . . . . Database Lockouts . | . . . . . . . . . . . Manual 22 | . 1 1 1 7 2 10 . . . . Terminals 51 | . 1 4 6 12 8 20 . . . . Fabricators 1 | . . . . 1 . . . . . . Repair Stations 3 | . 2 . . 1 . . . . . . Recycling Units 5 | . . . . 3 2 . . . . . Scanalyzers . | . . . . . . . . . . . Garrison Access 5 | . . . . 1 . 4 . . . . Terminal Hacks 25 | . 1 1 2 3 4 5 1 . 8 . Record 8 | . . . . . 1 1 . . 6 . Robot Schematic 1 | . . . . . 1 . . . . . Robot Analysis 1 | . . . . . 1 . . . . . Prototype ID Bank 3 | . . 1 1 . . 1 . . . . Open Door 3 | . . . . . . . 1 . 2 . Level Access Points 1 | . . . . 1 . . . . . . Terminal Index 1 | . . . . . 1 . . . . . Unreport Threat 1 | . . . . . . 1 . . . . Locate Traps 1 | . . . . . . 1 . . . . Reprogram Traps 1 | . . . . 1 . . . . . . Recall Investigation 1 | . . . . . . 1 . . . . Hauler Manifests 2 | . 1 . 1 . . . . . . . Zone Layout 1 | . . . . 1 . . . . . . Fabricator Hacks 1 | . . . . 1 . . . . . . Build 1 | . . . . 1 . . . . . . Repair Station Hacks 3 | . 2 . . 1 . . . . . . Scan Component 1 | . 1 . . . . . . . . . Repair 1 | . 1 . . . . . . . . . Refit 1 | . . . . 1 . . . . . . Recycling Unit Hacks 3 | . . . . 3 . . . . . . Retrieve Matter 2 | . . . . 2 . . . . . . Retrieve Components 1 | . . . . 1 . . . . . . Scanalyzer . | . . . . . . . . . . . Garrison Access Hacks 2 | . . . . 1 . 1 . . . . Seal Access 2 | . . . . 1 . 1 . . . . Unauthorized Hacks 9 | . . . 1 3 2 3 . . . . Terminals 9 | . . . 1 3 2 3 . . . . Assimilate 3 | . . . 1 1 1 . . . . . Botnet 6 | . . . . 2 1 3 . . . . Fabricators . | . . . . . . . . . . . Repair Stations . | . . . . . . . . . . . Recycling Units . | . . . . . . . . . . . Scanalyzers . | . . . . . . . . . . . Garrison Access . | . . . . . . . . . . . Data Cores Recovered . | . . . . . . . . . . . Used . | . . . . . . . . . . . Hacking Detections 21 | . 1 2 1 5 4 8 . . . . Full Trace Events 3 | . . . . . 2 1 . . . . Feedback Events . | . . . . . . . . . . . Feedback Blocked . | . . . . . . . . . . . Robot Schematics Acquired 1 | . . . . . 1 . . . . . Robots Built . | . . . . . . . . . . . Authchips . | . . . . . . . . . . . Time . | . . . . . . . . . . . Total Robot Build Rating . | . . . . . . . . . . . Part Schematics Acquired . | . . . . . . . . . . . Parts Built 2 | . . . . 2 . . . . . . Authchips . | . . . . . . . . . . . Time 84 | . . . . 84 . . . . . . Total Part Build Rating 8 | . . . . 8 . . . . . . Parts Repaired 1 | . 1 . . . . . . . . . Time 26 | . 26 . . . . . . . . . Parts Recycled . | . . . . . . . . . . . Recycled Matter . | . . . . . . . . . . . Retrieved Matter . | . . . . . . . . . . . Retrieved Components 3 | . . . . 3 . . . . . . Parts Scanalyzed . | . . . . . . . . . . . Part Schematics Acquired . | . . . . . . . . . . . Parts Damaged . | . . . . . . . . . . . Bothacking | -11 -10 -9 -8 -7 -6 -5 -5 -5 -5 -4 ------------ Run | Yrd Mat Mat Mat Fac Fac Fac Upp Upp War Pro Used RIF Installer . | . . . . . . . . . . . Robots Hacked . | . . . . . . . . . . . Non-combat . | . . . . . . . . . . . Combat . | . . . . . . . . . . . Robot Hacks Applied . | . . . . . . . . . . . Relay Couplers Released . | . . . . . . . . . . . Fabnet Peak Effective % . | . . . . . . . . . . . Robots Rewired . | . . . . . . . . . . . Allies Hacked . | . . . . . . . . . . . Hacks Repelled . | . . . . . . . . . . . Allies | -11 -10 -9 -8 -7 -6 -5 -5 -5 -5 -4 -------- Run | Yrd Mat Mat Mat Fac Fac Fac Upp Upp War Pro Total Allies 3 | . . . 1 1 . . . 1 . . Largest Group 2 | . . . 1 2 2 . . 1 . . Highest-Rated Group 167 | . . . 10 36 36 . . 167 . . Highest-Rated Ally 167 | . . . 10 26 26 . . 167 . . Total Orders . | . . . . . . . . . . . Ally Attacks . | . . . . . . . . . . . Total Damage . | . . . . . . . . . . . Kills . | . . . . . . . . . . . Allies Corrupted . | . . . . . . . . . . . Allies Melted . | . . . . . . . . . . . Intel | -11 -10 -9 -8 -7 -6 -5 -5 -5 -5 -4 ------- Run | Yrd Mat Mat Mat Fac Fac Fac Upp Upp War Pro Robot Analysis Total 1 | . . . . . 1 . . . . . Derelict Logs Recovered 2 | . . . . . . . 1 1 . . Drone Launches . | . . . . . . . . . . . Drone Recoveries . | . . . . . . . . . . . Exploration | -11 -10 -9 -8 -7 -6 -5 -5 -5 -5 -4 ------------- Run | Yrd Mat Mat Mat Fac Fac Fac Upp Upp War Pro Turns Passed 5358 | 52 715 526 469 476 902 290 490 1161 275 2 Spaces Moved 6063 | 34 544 291 532 926 767 634 906 1059 370 . Core 1827 | 7 . 5 . . 14 . 825 766 210 . Treads 460 | . . 198 89 . 173 . . . . . Legs . | . . . . . . . . . . . Wheels 870 | 27 469 . . . . . 81 293 . . Hover 323 | . 75 88 . . . . . . 160 . Flight 2583 | . . . 443 926 580 634 . . . . Fastest Speed 34 | 50 56 52 34 34 34 40 50 50 50 . Average Speed 62 | 89 94 128 55 34 91 40 52 58 58 . Slowest Speed 240 | 100 180 200 160 34 240 40 80 100 100 . Overloaded Moves . | . . . . . . . . . . . Propulsion Burnouts . | . . . . . . . . . . . Robots Hopped 16 | . . . 1 3 . 12 . . . . Cave-ins Triggered . | . . . . . . . . . . . Exploration Rate (%) 41 | 4 67 36 39 32 25 19 86 89 61 1 Regions Visited 10 Branch Regions 4 Pre-discovered Areas 2 | . . . . . . . 1 1 . . Known Exits Taken 1 | . . . . 1 . . . . . . Unknown Exits Taken 9 | 1 1 1 1 . 1 1 1 1 1 . Scrap Searched 7 | . . . . . . . 3 4 . . Spaces Dug 9 | . . . . . 4 . . 3 2 . Terrain Destroyed 76 | . . . 22 . 48 . . 4 2 . Melee 2 | . . . . . . . . . 2 . Projectile 4 | . . . . . . . . 4 . . AOE 70 | . . . 22 . 48 . . . . . Terrain Rammed . | . . . . . . . . . . . Walls Destroyed . | . . . . . . . . . . . Machines Disabled . | . . . . . . . . . . . Actions | -11 -10 -9 -8 -7 -6 -5 -5 -5 -5 -4 --------- Run | Yrd Mat Mat Mat Fac Fac Fac Upp Upp War Pro Total 7244 | 45 642 369 624 1084 882 658 916 1597 426 1 Wait 814 | . 30 . 18 133 22 31 3 533 44 . Move 6022 | 33 543 290 529 919 766 610 905 1058 369 . Hop 16 | . . . 1 3 . 12 . . . . Pick Up 20 | 2 4 4 1 3 2 1 3 . . . Fast Attach 58 | 6 7 9 6 6 15 1 4 . 4 . Attach 16 | . . 2 4 2 5 . . 1 2 . Detach 9 | . 3 1 . . 2 . . 1 2 . Swap 3 | . . 1 1 1 . . . . . . Drop 33 | . 3 5 2 11 5 2 1 1 3 . Fire 240 | 4 52 55 62 1 63 . . 3 . . Melee 3 | . . . . . . . . . 2 1 Ram 7 | . . . . 5 1 1 . . . . Kick . | . . . . . . . . . . . Crush 3 | . . 2 . . 1 . . . . . Escape Stasis . | . . . . . . . . . . . Rewire . | . . . . . . . . . . . Trap . | . . . . . . . . . . . Miscellaneous . | . . . . . . . . . . . Route ------- -11/Scrapyard -10/Materials (discovered 3 exits: *Mat x2 / [*Min]) -9/Materials (discovered 3 exits: *Mat x2 / [*Min]) -8/Materials -7/Factory (discovered 5 exits: *Fac x4 / [*Low]) -6/Factory -5/Factory (discovered 2 exits: *Upp / [*Ext]) -5/Upper Caves -5/Upper Caves (discovered 2 exits: [*Fac] / *War) -5/Warlord -4/Proximity Caves History --------- Turn | Location | Event 4 | -11/Scrapyard | Discovered new exit (range 16) 53 | -11/Scrapyard | Entered Materials 74 | -10/Materials | Discovered new exit (range 16) 295 | -10/Materials | Discovered new exit (range 16) 318 | -10/Materials | Build established: Mutant 739 | -10/Materials | Repaired Structural Scanner 760 | -10/Materials | Discovered new exit (range 14) 768 | -10/Materials | Entered another Materials area 768 | -9/Materials | Evolved 2 slots: Propulsion x1, Utility x1 894 | -9/Materials | Lost 5 parts (1p4n) 910 | -9/Materials | Discovered new exit (range 14) 1193 | -9/Materials | Discovered new exit (range 14) 1270 | -9/Materials | Discovered new exit (range 8) 1294 | -9/Materials | Entered another Materials area 1294 | -8/Materials | Evolved 2 slots: Propulsion x1, Utility x1 1430 | -8/Materials | Garrison activated, responded to threat 1505 | -8/Materials | Discovered new exit (range 15) 1522 | -8/Materials | Lost 6 parts (3n2u1w) 1763 | -8/Materials | Entered Factory 1763 | -7/Factory | Accompanied by 1 ally 1763 | -7/Factory | Evolved 2 slots: Utility x2 1890 | -7/Factory | Discovered new exit (range 3) 1955 | -7/Factory | Fabricated Core Analyzer? 2114 | -7/Factory | Identified exit to Factory 2239 | -7/Factory | Entered another Factory area 2239 | -6/Factory | Accompanied by 2 allies 2239 | -6/Factory | Evolved 2 slots: Utility x2 2703 | -6/Factory | Lost 4 parts (1p3u) 3032 | -6/Factory | Discovered new exit (range 19) 3133 | -6/Factory | Lost 11 parts (1p4n3u3w) 3141 | -6/Factory | Entered another Factory area 3141 | -5/Factory | Evolved 2 slots: Power x1, Utility x1 3273 | -5/Factory | Discovered new exit (range 15) 3328 | -5/Factory | Spotted B-75 Beast 3361 | -5/Factory | Discovered new exit (range 7) 3431 | -5/Factory | Entered Upper Caves 3547 | -5/Upper Caves | Attracted the attention of an 0b10 checkpoint 3694 | -5/Upper Caves | Spotted B-75 Beast 3700 | -5/Upper Caves | Core integrity fell below 50% 3742 | -5/Upper Caves | Discovered new exit (range 13) 3921 | -5/Upper Caves | Entered another Upper Caves area 3970 | -5/Upper Caves | Discovered new exit (range 8) 4156 | -5/Upper Caves | Attracted the attention of an 0b10 outpost 5058 | -5/Upper Caves | Attracted the attention of an 0b10 checkpoint 5067 | -5/Upper Caves | Core integrity fell below 20% 5077 | -5/Upper Caves | Discovered new exit (range 11) 5082 | -5/Upper Caves | Entered Warlord 5163 | -5/Warlord | Met Warlord 5188 | -5/Warlord | Warlord's base attacked by MAIN.C 5267 | -5/Warlord | Found Prototype Piercing Weapon 5267 | -5/Warlord | Identified Vortex Lance 5269 | -5/Warlord | Found Vortex Lance 5338 | -5/Warlord | Opened side exit 5351 | -5/Warlord | Discovered new exit (range 10) 5357 | -5/Warlord | Entered Proximity Caves 5359 | -4/Proximity Caves | Destroyed by S-27 Virus with Autogun Last Messages --------------- 05288_ ANNOUNCEMENT: Detected 1 Melee squad, 2 Saboteur squads, 1 Grunt squad. 05322_ Connecting with WAR.Sys... >>Open Door Sealed Heavy Doors opened. 05338_ The tunnel wall slides away. 05351_ EXIT=FOUND LOCATION=UNKNOWN GOAL=ESCAPE 05357_ Sneak attack on S-27 Virus. 05357_ Destroyed VTOL Module. 05357_ S-27 Virus destroyed. 05357_ Sneak attack on S-27 Virus. 05357_ Vortex Lance follow-up attack on S-27 Virus. 05357_ Destroyed Autogun. 05357_ Destroyed VTOL Module. 05357_ S-27 Virus destroyed. [Achievement: Ambidextrous] [Achievement: Tester] Map ----- +----------------------------------------------------+ | | | | | | | | | | | | | | | ?????????????????????????????????????????????? | | ?????????????????????????????????????????????? | | ?????????????????????????????????????????????? | | ?????????????????????????????????????????????? | | ?????????????????????????????????????????????? | | ?????????????????????????????????????????????? | | ?????????????????????????????????????????????? | | ?????????????????????????????????????????????? | | ?????????????????????????????????????????????? | | ?????????????????????????????????????????????? | | ?????????????????????????????????????????????? | | ?????????????????????????????????????????????? | | ?????????????????????????????????????????????? | | ?????????????????????????????????????????????? | | ????????????????????????????????###??????????? | | ??????????????????????####### ##?????????? | | ?????????????????##### ??????????? | | ?????????????????# ???????????????? | | ?????????????????# *%@ s#????????????????????? | | ?????????????????# s%###????????????????????? | | ?????????????????## s##??????????????????????? | | ??????????????????###????????????????????????? | | ?????????????????????????????????????????????? | | ?????????????????????????????????????????????? | | ?????????????????????????????????????????????? | | ?????????????????????????????????????????????? | | ?????????????????????????????????????????????? | | ?????????????????????????????????????????????? | | ?????????????????????????????????????????????? | | ?????????????????????????????????????????????? | | ?????????????????????????????????????????????? | | ?????????????????????????????????????????????? | | ?????????????????????????????????????????????? | | ?????????????????????????????????????????????? | | ?????????????????????????????????????????????? | | ?????????????????????????????????????????????? | | ?????????????????????????????????????????????? | | ?????????????????????????????????????????????? | | ?????????????????????????????????????????????? | | ?????????????????????????????????????????????? | | ?????????????????????????????????????????????? | | ?????????????????????????????????????????????? | | ?????????????????????????????????????????????? | +----------------------------------------------------+ Best States ------------- Heat Dissipation 56 Energy Generation 17 Energy Capacity 300 Matter Stores 300 Matter Capacity 300 Sight Range 20 Robot Scan Range 15 Terrain Scan Range 20 Terrain Scan Density 310 Armor Coverage 375 Resistance: KI 25 Evasion (%) 63 Recoil Reduction 4 Kinecelleration 30 Offensive Hacking 10 Item Schematics ----------------- None Robot Schematics ------------------ E-15 Imp | -6/Factory | Hacked Fabricated ------------ Core Analyzer | x2 | -7/Factory | Preloaded Alien Tech Used ----------------- None Achievements -------------- Ambidextrous Tester Challenges ------------ None Game ------ Seed ComponentGaussClaws Manual? 0 Play Time 01:04:41 Cumulative 55.9 hours Start 2024.06.06 @ 03:31:07 End 2024.06.07 @ 02:57:55 Sessions 5 Manual Loads 0 Difficulty Rogue Special Mode None Game No. 28 Rogue 2 Adventurer 19 Explorer 7 Win Type - Total 2 Types 2/0/0/0/0/0/0/0/0 Lore% 36 Gallery% 50 Achievement% 42 Wizard Run 0 Options --------- Layout 1 ASCII 0 Keyboard 0 Movement Mouse Keybinds 0 Fullscreen 0 Font 28/SmallcapsGlow Map View 50x40 Zoom Use 0% Tactical HUD 1 Map Filters NONE Filters NONE Steam 1 RUN: e45ce587-90ab-4276-9bcb-7114d6708076